Workbook

Sheet 18.10.21
A1: Школа | B1: - | E1: Отд./корп | I1: День | J1: 2021-10-18
A3: Прием пищи | B3: Раздел | C3: № рец. | D3: Блюдо | E3: Выход, г | F3: Цена | G3: Калорийность | H3: Белки | I3: Жиры | J3: Углеводы
A4: Завтрак | B4: гор.блюдо | C4: ТК № 302 | D4: Каша "Дружба" | E4: 200 | F4: 27.00 | G4: 232 | H4: 6.27 | I4: 8.13 | J4: 33.47
B5: гор.напиток | C5: ДО5МП18 | D5: Чай с сахаром | E5: 200 | F5: 6.00 | G5: 35 | H5: 0.1 | I5: 0.02 | J5: 9.9
B6: хлеб | C6: ТК №1 | D6: Бутерброд с сыром | E6: 30/10 | F6: 12.43 | G6: 69 | H6: 3.28 | I6: 0.9 | J6: 12.48
B7: фрукты | D7: Фрукт (яблоко) | E7: 75 | F7: 12.00 | G7: 35 | H7: 0.3 | I7: 0.3 | J7: 7.35
A9: Завтрак 2
D11: Итого завтрак: | F11: =SUM(F4:F10) -> 57.43 | G11: =SUM(G4:G10) -> 371 | H11: =SUM(H4:H10) -> 10 | I11: 9 | J11: 63
A12: Обед | B12: закуска | C12: ДО7АД19 | D12: Салат из моркови | E12: 40 | F12: 5.00 | G12: 40 | H12: 0.4 | I12: 1.8 | J12: 5.8
B13: 1 блюдо | C13: ДО7АА19 | D13: Суп картоф. с пшенной крупой | E13: 200 | F13: 6.00 | G13: 244 | H13: 1.73 | I13: 10.67 | J13: 25.33
B14: 2 блюдо | C14: ДО7ЕВ19 | D14: Каша гречневая рассыпчатая | E14: 150 | F14: 9.00 | G14: 179 | H14: 6.72 | I14: 4.32 | J14: 27.68
B15: гарнир | C15: ТК№97 | D15: Котлеты куриные, соус | E15: 60/25 | F15: 33.00 | G15: 145 | H15: 12.08 | I15: 6.18 | J15: 10.15
B16: гор.напиток | C16: ТК № 295 | D16: Чай с сахаром | E16: 200 | F16: 6.00 | G16: 35 | H16: 0.1 | I16: 0.02 | J16: 9.9
B17: хлеб | C17: СПРЕБРЖ | D17: Хлеб пшенично -ржаной | E17: 50 | F17: 5.23 | G17: 121 | H17: 5.7 | I17: 1.55 | J17: 21.57
G18: =SUM(G12:G17) -> 764 | H18: =SUM(H12:H17) -> 27 | I18: 25 | J18: 100
D20: Итого обед: | F20: =SUM(F12:F19) -> 64.23 | G20: =G11+G18 -> 1135 | H20: =H11+H18 -> 37 | I20: 34 | J20: 164

Sheet 19.10.21
A1: Школа | B1: - | E1: Отд./корп | I1: День | J1: 2021-10-19
A3: Прием пищи | B3: Раздел | C3: № рец. | D3: Блюдо | E3: Выход, г | F3: Цена | G3: Калорийность | H3: Белки | I3: Жиры | J3: Углеводы
A4: Завтрак | B4: гор.блюдо | C4: ТК№143 | D4: Птица тушеная с овощами | E4: 30/150 | F4: 38 | G4: 253.8 | H4: 17.46 | I4: 11.61 | J4: 18.27
B5: гор.напиток | C5: ШО7ТЭШК | D5: Чай с молоком и сахаром | E5: 200 | F5: 8 | G5: 75 | H5: 2 | I5: 5 | J5: 18
B6: хлеб | C6: ТК №1 | D6: Бутерброд с маслом | E6: 30/8 | F6: 11.43 | G6: 131 | H6: 3.92 | I6: 1.54 | J6: 18.08
D8: Итого завтрак: | F8: =SUM(F4:F7) -> 57.43
A9: Завтрак 2 | B9: фрукты
G10: =SUM(G4:G9) -> 460 | H10: =SUM(H4:H9) -> 23 | I10: 18 | J10: 54
A12: Обед | B12: закуска | C12: ТК № 24 | D12: Салат из свеклы | E12: 40 | F12: 5.00 | G12: 42 | H12: 0.5 | I12: 2.9 | J12: 3.2
B13: 1 блюдо | C13: ДО7СПЕР | D13: Суп рыбный | E13: 200 | F13: 9.00 | G13: 167 | H13: 6.32 | I13: 16 | J13: 22.01
B14: 2 блюдо | C14: ДО7ЕЯ19 | D14: Макаронные изделия отварные | E14: 150 | F14: 13.00 | G14: 196 | H14: 5.37 | I14: 4.25 | J14: 33.38
B15: гарнир | C15: ТК № 11 | D15: Тефтели из говядины | E15: 60/20 | F15: 28.00 | G15: 196 | H15: 9.36 | I15: 12.96 | J15: 9.96
B16: сладкое | C16: ТК№77 | D16: Кисель | E16: 200 | F16: 4.00 | G16: 80 | H16: 4 | I16: 0 | J16: 25
B17: хлеб | C17: СПРЕБРЖ | D17: Хлеб пшенично -ржаной | E17: 50 | F17: 5.23 | G17: 121 | H17: 5.7 | I17: 1.55 | J17: 21.57
D20: Итого обед: | F20: =SUM(F12:F19) -> 64.23 | G20: =G4+G5+G6+G7+G8+G12+G13+G14+G15+G16+G17 -> 1262 | H20: =H4+H5+H6+H7+H8+H12+H13+H14+H15+H16+H17 -> 55 | I20: 56 | J20: 169

Sheet 20.10.21
A1: Школа | B1: - | E1: Отд./корп | I1: День | J1: 2021-10-20
A3: Прием пищи | B3: Раздел | C3: № рец. | D3: Блюдо | E3: Выход, г | F3: Цена | G3: Калорийность | H3: Белки | I3: Жиры | J3: Углеводы
A4: Завтрак | B4: гор.блюдо | C4: ТК№83 | D4: Каша гречневая рассыпчатая | E4: 150 | F4: 9.00 | G4: 288 | H4: 10.4 | I4: 6.8 | J4: 45.4
B5: гарнир | C5: ТК №97 | D5: Гуляш из говядины | E5: 25/25 | F5: 33.00 | G5: 99.5 | H5: 7.05 | I5: 7.1 | J5: 1.6
B6: гор.напиток | C6: ТК№304 | D6: Кофейный напиток на молоке | E6: 200 | F6: 12.00 | G6: 94 | H6: 2.9 | I6: 2.8 | J6: 14.9
B7: хлеб | C7: СПРЕБРЖ | D7: Хлеб пшенично -ржаной | E7: 30 | F7: 3.43 | G7: 69 | H7: 3.28 | I7: 0.9 | J7: 12.48
D9: Итого завтрак: | F9: =SUM(F4:F8) -> 57.43
A10: Завтрак 2 | B10: фрукты
A13: Обед | B13: закуска | C13: ТК№5 | D13: Салат из свежей капусты | E13: 40 | F13: 5.00 | G13: 36 | H13: 0.9 | I13: 1.8 | J13: 4.1
B14: 1 блюдо | C14: ДО7ДГ19 | D14: Рассольник ленинградский | E14: 200 | F14: 9.00 | G14: 244 | H14: 1.73 | I14: 10.67 | J14: 25.13
B15: 2 блюдо | C15: ДО7КБКК | D15: Фрикадельки из птицы в томат.соусе | E15: 60/25 | F15: 35.00 | G15: 148 | H15: 8.76 | I15: 10.29 | J15: 5.14
B16: гарнир | C16: ТК № 170 | D16: Гороховое пюре | E16: 150 | F16: 6.00 | G16: 240 | H16: 14.6 | I16: 5.1 | J16: 33.1
B17: сладкое | C17: ШО7ИЯ19 | D17: Напиток из плодов (яблоко) | E17: 200 | F17: 4.00 | G17: 89 | H17: 0.2 | I17: 0.1 | J17: 23.5
B18: хлеб | C18: СПРЕБРЖ | D18: Хлеб пшенично -ржаной | E18: 50 | F18: 5.23 | G18: 121 | H18: 5.7 | I18: 1.55 | J18: 21.57
D21: Итого обед: | F21: =SUM(F13:F20) -> 64.23 | G21: =G4+G5+G6+G7+G9+G13+G14+G15+G16+G17+G18 -> 1429 | H21: =H4+H5+H6+H7+H9+H13+H14+H15+H16+H17+H18 -> 56 | I21: 47 | J21: 187

Sheet 21.10.21
A1: Школа | B1: - | E1: Отд./корп | I1: День | J1: 2021-10-21
A3: Прием пищи | B3: Раздел | C3: № рец. | D3: Блюдо | E3: Выход, г | F3: Цена | G3: Калорийность | H3: Белки | I3: Жиры | J3: Углеводы
A4: Завтрак | B4: гор.блюдо | C4: ТК № 217 | D4: Макароны, запеченные с сыром | E4: 150 | F4: 16 | G4: 236 | H4: 7.3 | I4: 11.8 | J4: 24.5
B5: гор.напиток | C5: ТК№302 | D5: Чай с лимоном | E5: 200 | F5: 10 | G5: 37 | H5: 0.1 | I5: 0 | J5: 9.3
B6: хлеб | C6: ТК №1 | D6: Бутерброд с маслом | E6: 30/8 | F6: 11.43 | G6: 131 | H6: 3.92 | I6: 1.54 | J6: 18.08
C7: 155.02 | D7: Йогурт | E7: 100 | F7: 20 | G7: 120 | H7: 3 | I7: 3 | J7: 5
D9: Итого завтрак: | F9: =SUM(F4:F8) -> 57.43
A10: Завтрак 2
A13: Обед | B13: закуска | C13: ДО7АД19 | D13: Свекла отварная | E13: 40 | F13: 5.00 | G13: 14 | H13: 0.6 | I13: 0 | J13: 2.9
B14: 1 блюдо | C14: ДО7ДА19 | D14: Щи из св. капусты с картофелем | E14: 200 | F14: 15.00 | G14: 244 | H14: 1.47 | I14: 9.33 | J14: 37.33
B15: гор.блюдо | C15: ДО7КЛ19 | D15: Плов из птицы | E15: 25/125 | F15: 35.00 | G15: 320 | H15: 14.2 | I15: 18.4 | J15: 23.7
B16: сладкое | C16: ШО7ИЯ19 | D16: Напиток из плодов | E16: 200 | F16: 4.00 | G16: 89 | H16: 0.2 | I16: 0.1 | J16: 23.5
B17: хлеб | C17: СПРЕБРЖ | D17: Хлеб ржано - пшеничный витаминный | E17: 50 | F17: 5.23 | G17: 121 | H17: 5.7 | I17: 1.55 | J17: 21.57
D21: Итого обед: | F21: =SUM(F13:F20) -> 64.23 | G21: =G4+G5+G6+G7+G9+G13+G14+G15+G16+G17+G18 -> 1312 | H21: =H4+H5+H6+H7+H9+H13+H14+H15+H16+H17+H18 -> 36 | I21: 46 | J21: 166

Sheet 22.09.21
A1: Школа | B1: МБОУ СОШ с.Васильевка | E1: Отд./корп | I1: День | J1: 2021-10-22
A3: Прием пищи | B3: Раздел | C3: № рец. | D3: Блюдо | E3: Выход, г | F3: Цена | G3: Калорийность | H3: Белки | I3: Жиры | J3: Углеводы
A4: Завтрак | B4: гор.блюдо | C4: ДО7БИ19 | D4: Биточки рыбные с соусом | E4: 60/25 | F4: 28.00 | G4: 134 | H4: 9.72 | I4: 6.84 | J4: 8.28
B5: гарнир | C5: ДО7ЕВ19 | D5: Картофельное пюре | E5: 150 | F5: 20.00 | G5: 136 | H5: 3 | I5: 4.63 | J5: 20.13
B6: гор.напиток | C6: ШО7ИЯ19 | D6: Чай с сахаром | E6: 200 | F6: 6.00 | G6: 35 | H6: 0.1 | I6: 0.02 | J6: 9.9
B7: хлеб | C7: СПРЕБРЖ | D7: Хлеб пшенично -ржаной | E7: 30 | F7: 3.43 | G7: 69 | H7: 3.28 | I7: 0.9 | J7: 12.48
D9: Итого завтрак: | F9: =SUM(F4:F8) -> 57.43
A10: Завтрак 2 | B10: фрукты
A13: Обед | B13: закуска | C13: ТТК | D13: Огурец свежий/соленый (термообработка) | E13: 40 | F13: 7.00 | G13: 7 | H13: 0.32 | I13: 0.04 | J13: 0.76
B14: 1 блюдо | C14: ДО7ДЛ19 | D14: Суп картофельный с бобовыми | E14: 200 | F14: 7.00 | G14: 169 | H14: 6.2 | I14: 4.1 | J14: 25.5
B15: 2 блюдо | C15: ДО7КЛ19 | D15: Котлета мясная с соусом | E15: 60/25 | F15: 35.00 | G15: 160 | H15: 11 | I15: 8 | J15: 10
B16: гарнир | C16: ДО7ЕЯ19 | D16: Рожки отварные | E16: 150 | F16: 6.00 | G16: 196 | H16: 5.37 | I16: 4.25 | J16: 33.38
B17: сладкое | C17: ШО7ИЯ19 | D17: Напиток из плодов (шиповник) | E17: 200 | F17: 4.00 | G17: 89 | H17: 0.2 | I17: 0.1 | J17: 23.5
B18: хлеб | C18: СПРЕБРЖ | D18: Хлеб пшенично -ржаной | E18: 50 | F18: 5.23 | G18: 121 | H18: 5.7 | I18: 1.55 | J18: 21.57
D21: Итого обед: | F21: =SUM(F13:F20) -> 64.23 | G21: =G4+G5+G6+G7+G9+G10+G13+G14+G15+G16+G17+G18 -> 1116 | H21: =H4+H5+H6+H7+H9+H10+H13+H14+H15+H16+H17+H18 -> 45 | I21: 30 | J21: 166
